bitfinex-derivatives/quotes_SOLF0:USTF0_20250929
["timestamp","ask_amount","ask_price","bid_price","bid_amount"]
[1759132783406,7.9079,208.84,208.73,7.47]
[1759132783606,1.19696034,208.83,208.77,4.3091]
[1759132783803,3.6,208.88,208.79,7.47]
[1759132784710,3.6,208.88,208.8,5.31904651]
[1759132784903,3.6,208.88,208.81,7.47]
[1759132785709,3.6,208.88,208.82,4.308]
[1759132787611,3.6,208.92,208.84,7.47]
[1759132789115,7.9063,208.92,208.84,7.47]
[1759132789711,3.6,208.92,208.84,11.7776]
[1759132789915,16.46321,208.93,208.85,7.47]
[1759132790817,16.46321,208.93,208.88,7.47]
[1759132791611,16.46321,208.93,208.88,4.3068]
[1759132791817,16.46321,208.93,208.89,7.47]
[1759132792219,16.46321,208.93,208.88,4.3068]
[1759132792817,16.46321,208.93,208.89,7.47]
[1759132793213,16.46321,208.93,208.88,4.3068]
[1759132793418,16.46321,208.93,208.89,7.47]
[1759132793812,16.46321,208.93,208.88,4.3068]
[1759132794217,16.46321,208.93,208.89,7.77]
[1759132794414,16.46321,208.93,208.88,18.40064315]
[1759132794619,20.05321,208.93,208.89,7.77]
[1759132794820,16.46321,208.93,208.89,7.77]
[1759132795029,20.05321,208.93,208.86,12.0774]
[1759132795420,20.05321,208.93,208.87,7.77]
[1759132795724,20.05321,208.93,208.87,12.077]
[1759132797721,20.05321,208.93,208.87,26.68117507]
[1759132799027,16.46321,208.93,208.87,26.68117507]
[1759132799215,20.05321,208.93,208.87,18.91117507]
[1759132801423,20.05321,208.93,208.87,4.307]
[1759132802021,20.05321,208.93,208.88,7.77]
[1759132802625,16.46321,208.93,208.89,7.77]
[1759132803416,16.46321,208.93,208.91,4.3063]
[1759132803615,16.46321,208.93,208.92,7.77]
[1759132805129,16.46321,208.93,208.92,124.53]
[1759132805327,16.46321,208.93,208.92,7.77]
[1759132806022,16.46321,208.93,208.9,7.77]
[1759132806423,16.46321,208.93,208.89,178.78]
[1759132806631,16.46321,208.93,208.9,7.77]
[1759132806829,16.46321,208.93,208.89,178.78]
[1759132807026,16.46321,208.93,208.9,7.77]
[1759132807329,16.46321,208.93,208.89,178.78]
[1759132807529,16.46321,208.93,208.91,12.0763]
[1759132807729,16.46321,208.93,208.92,7.77]
[1759132813231,16.46321,208.93,208.92,124.49]
[1759132814232,16.46321,208.93,208.92,7.77]
[1759132814428,16.46321,208.93,208.9,7.99]
[1759132814634,16.46321,208.93,208.91,124.73]
[1759132814932,16.46321,208.93,208.92,7.99]
[1759132817635,16.46321,208.93,208.92,69.99]
[1759132819036,3.61,208.92,208.88,4.3068]
[1759132819236,16.25589134,208.93,208.9,7.99]
[1759132819731,16.25589134,208.93,208.89,116.72]
[1759132819732,8.79839134,208.93,208.92,7.99]
[1759132820038,8.79839134,208.93,208.92,124.97]
[1759132822037,8.79839134,208.93,208.92,186.97]
[1759132824235,0.65484023,208.93,208.92,186.62]
[1759132824434,4.023e-05,208.93,208.92,187.1]
[1759132824837,3.59,209.02,208.95,7.64]
[1759132825140,3.59,209.02,208.96,116.96]
[1759132825342,3.59,209.02,208.96,124.6]
[1759132825734,3.59,209.02,208.96,7.64]
[1759132825930,66.9349,209.08,208.97,48.54]
[1759132826340,3.59,209.07,208.95,4.3054]
[1759132826640,3.59,209.07,208.96,34.24]
[1759132826845,66.9349,209.08,208.96,34.24]
[1759132827034,66.9349,209.08,208.97,69.42]
[1759132827638,3.59,209.03,208.97,69.42]
[1759132827938,4.3038,209.04,208.98,110.14]
[1759132828333,3.59,209.03,208.98,110.14]
[1759132828539,3.59,209.03,208.99,7.64]
[1759132829141,4.3033,209.06,208.99,7.64]
[1759132829642,3.59,209.07,208.99,11.9445]
[1759132830340,3.59,209.07,209.0,4.3043]
[1759132830542,3.59,209.07,209.01,7.64]
[1759132830743,3.59,209.09,209.02,116.9]
[1759132830944,3.59,209.08,209.02,116.9]
[1759132831334,3.59,209.09,209.0,116.92]
[1759132831535,66.9278,209.1,209.0,116.92]
[1759132831743,4.3036,209.05,208.96,11.9453]
[1759132831945,3.59,209.04,208.97,116.94]
[1759132833647,66.9379,209.07,208.95,4.3055]
[1759132833848,66.9379,209.07,208.96,116.94]
[1759132834047,66.9443,209.05,208.93,69.64]
[1759132834243,66.9567,209.01,208.9,171.81720775]
[1759132834450,3.59,208.99,208.89,7.64]
[1759132834649,3.59,208.98,208.89,128.9067]
[1759132834837,3.59,208.98,208.89,116.96]
[1759132835041,3.59,209.05,208.9,7.64]
[1759132835241,7.8943,209.02,208.94,4.3057]
[1759132835546,7.8943,209.02,208.94,129.0457]
[1759132836652,3.59,209.02,208.95,7.64]
[1759132836952,3.59,209.02,208.95,11.9453]
[1759132837248,4.3037,209.04,208.95,7.64]
[1759132837450,3.59,209.03,208.95,7.64]
[1759132837649,66.9438,209.05,208.95,7.64]
[1759132837846,3.59,209.04,208.95,7.64]
[1759132838047,3.59,209.04,208.94,117.1]
[1759132838246,66.9438,209.05,208.94,117.1]
[1759132838647,4.3043,209.02,208.94,117.1]
[1759132838844,3.59,209.01,208.94,117.1]
[1759132840556,4.3045,209.0,208.94,117.1]
[1759132841851,3.59,208.98,208.94,7.64]
[1759132842048,66.9569,209.01,208.9,7.64]
[1759132842356,3.59,209.0,208.9,7.64]
[1759132842560,4.3053,208.97,208.9,7.64]
[1759132843253,4.3053,208.97,208.9,12.9216817]
[1759132845258,4.3053,208.97,208.9,7.64]
[1759132846165,7.8953,208.97,208.9,12.9216817]
[1759132846860,3.59,208.97,208.9,12.9216817]
[1759132847062,3.59,208.97,208.87,356.30252255]
[1759132847063,3.59,208.96,208.87,348.38]
[1759132847265,66.9693,208.97,208.87,348.38]
[1759132847474,66.9763,208.95,208.86,182.73222584]
[1759132847670,4.3067,208.9,208.86,175.09222584]
[1759132847970,4.3067,208.9,208.87,7.64]
[1759132848571,7.8967,208.9,208.87,7.64]
[1759132848961,3.59,208.9,208.87,7.64]
[1759132849161,4.3061,208.92,208.87,7.64]
[1759132849368,3.59,208.91,208.87,7.64]
[1759132849767,3.59,208.91,208.83,124.74]
[1759132850964,3.59,209.01,208.86,5.2816817]
[1759132851166,3.59,209.01,208.88,7.64]
[1759132851469,3.59,209.0,208.89,57.08]
[1759132851767,3.59,209.0,208.9,7.64]
[1759132852471,4.3053,208.97,208.9,7.64]
[1759132853975,4.3047,208.99,208.91,7.66]
[1759132855070,4.3047,208.99,208.92,7.66]
[1759132855468,4.3043,209.02,208.92,7.66]
[1759132855669,3.61,209.04,208.95,7.66]
[1759132857167,4.3039,209.03,208.95,7.66]
[1759132858275,4.3043,209.01,208.95,7.66]
[1759132861876,66.934,209.08,208.96,7.66]
[1759132862174,3.61,209.07,208.96,7.66]
[1759132863677,4.3039,209.04,208.96,7.66]
[1759132863879,66.9413,209.06,208.96,7.66]
[1759132864182,4.3043,209.02,208.96,7.66]
[1759132864581,66.9472,209.04,208.96,7.66]
[1759132864882,4.3047,208.99,208.92,7.66]
[1759132865180,3.61,209.0,208.92,7.66]
[1759132865979,3.61,209.0,208.92,69.66]
[1759132866176,3.61,209.0,208.93,7.66]
[1759132867676,7.9147,209.0,208.93,7.66]
[1759132869577,4.3047,209.0,208.93,7.66]
[1759132869777,4.3041,209.02,208.93,7.66]
[1759132870483,4.3044,209.01,208.93,7.66]
[1759132871277,7.9144,209.01,208.93,7.66]
[1759132873181,66.9539,209.02,208.93,7.66]
[1759132873385,3.59,209.01,208.9,7.25]
[1759132874083,4.3049,208.98,208.9,7.25]
[1759132874388,3.59,208.99,208.9,7.25]
[1759132875083,7.8948,208.99,208.91,4.3063]
[1759132875282,7.8948,208.99,208.92,7.25]
[1759132875886,4.305,208.98,208.92,7.25]
[1759132877587,3.59,208.99,208.92,7.25]
[1759132878389,7.8948,208.99,208.92,7.25]
[1759132880795,3.59,208.99,208.92,7.25]
[1759132881795,4.3041,209.02,208.92,11.556]
[1759132882092,4.3041,209.02,208.94,7.25]
[1759132886599,3.59,209.03,208.94,11.5556]
[1759132886793,3.61,209.07,208.95,7.85]
[1759132886993,3.61,209.07,208.98,7.85]
[1759132887188,3.61,209.07,208.99,7.85]
[1759132888596,3.61,209.07,208.99,4.3045]
[1759132888795,3.61,209.07,209.0,7.85]
[1759132888992,3.61,209.12,209.0,7.85]
[1759132889301,4.3023,209.11,209.03,7.85]
[1759132890808,4.3023,209.11,209.03,12.1537]
[1759132891200,4.3023,209.11,209.03,7.85]
[1759132891495,7.9126,209.1,209.03,7.85]
[1759132891699,3.61,209.12,209.03,21.88785149]
[1759132891902,3.61,209.11,209.03,7.85]
[1759132892095,4.3028,209.09,209.03,7.85]
[1759132893206,7.9123,209.11,209.03,7.85]
[1759132895907,4.3018,209.13,209.04,7.85]
[1759132896310,3.61,209.14,209.04,7.85]
[1759132896503,4.3027,209.09,209.04,7.85]
[1759132896810,4.3027,209.09,209.02,7.85]
[1759132897006,4.3035,209.06,209.02,7.85]
[1759132897211,66.9403,209.06,209.02,7.85]
[1759132897406,3.61,209.05,208.98,7.85]
[1759132898111,4.3041,209.02,208.96,7.85]
[1759132898309,4.3041,209.02,208.96,14.58355933]
[1759132898507,4.3041,209.02,208.95,5.2816817]
[1759132898710,4.3041,209.02,208.96,7.85]
[1759132899110,4.3037,209.04,208.96,7.85]
[1759132899404,66.931,209.09,208.97,7.85]
[1759132899405,70.541,209.09,208.97,7.85]
[1759132900007,70.541,209.09,208.99,7.85]
[1759132900207,4.3033,209.06,208.99,7.85]
[1759132900409,3.61,209.09,208.99,7.85]
[1759132901613,4.303,209.08,208.99,7.85]
[1759132902002,4.303,209.08,208.99,130.2116817]
[1759132902201,4.303,209.08,209.0,7.85]
[1759132904212,4.3032,209.07,209.0,7.85]
[1759132905612,4.3032,209.07,209.01,7.85]
[1759132909016,4.3027,209.09,209.01,7.85]
[1759132909516,4.3027,209.09,209.02,7.85]
[1759132909712,7.9122,209.12,209.02,7.85]
[1759132910314,4.3024,209.11,209.03,12.1537]
[1759132911216,4.3026,209.1,209.03,12.1537]
[1759132912117,4.3026,209.1,209.04,7.85]
[1759132915618,66.9182,209.13,209.04,7.85]
[1759132915814,66.9278,209.1,208.99,7.81]
[1759132916122,3.61,209.09,208.99,7.81]
[1759132917413,3.61,209.09,209.0,7.81]
[1759132917617,4.3033,209.06,209.0,7.81]
[1759132918719,66.9278,209.1,209.0,7.81]
[1759132919020,3.61,209.05,208.97,154.45064885]
[1759132919223,3.61,209.03,208.97,154.45064885]
[1759132920425,4.3047,209.0,208.98,7.81]
[1759132921428,7.9149,208.99,208.96,14.40927776]
[1759132921621,66.947,209.04,208.94,124.71]
[1759132921622,66.9534,209.02,208.94,7.81]
[1759132921821,3.61,209.03,208.94,7.81]
[1759132922726,3.61,209.03,208.94,21.84382137]
[1759132923718,66.9406,209.06,208.95,5.2816817]
[1759132923921,3.61,209.07,208.96,7.81]
[1759132924225,66.9194,209.13,209.0,13.0916817]
[1759132924226,3.61,209.1,209.0,13.0916817]
[1759132924530,3.61,209.1,209.01,7.81]
[1759132925728,4.303,209.08,209.01,7.81]
[1759132926822,4.303,209.08,209.02,7.81]
[1759132927521,140.5332,209.15,209.02,7.81]
[1759132927522,4.3024,209.11,209.05,5.2816817]
[1759132927919,4.3024,209.11,209.05,7.81]
[1759132929727,4.3026,209.1,209.04,7.81]
[1759132930525,4.3028,209.09,209.05,7.81]
[1759132930923,3.61,209.11,209.05,7.81]
[1759132931122,3.61,209.11,209.02,7.81]
[1759132931329,3.61,209.11,209.03,7.81]
[1759132931528,3.61,209.11,209.04,7.81]
[1759132933329,4.3029,209.08,209.02,117.1]
[1759132934232,4.3029,209.08,209.03,7.83]
[1759132934432,4.3029,209.08,209.02,117.1]
[1759132935028,4.3029,209.08,209.03,7.83]
[1759132935531,4.3029,209.08,209.02,117.1]
[1759132935931,4.3029,209.08,209.03,7.83]
[1759132936132,4.3029,209.08,209.02,117.1]
[1759132936331,4.3029,209.08,209.03,7.83]
[1759132936835,4.3029,209.08,209.02,117.1]
[1759132937435,4.3029,209.08,209.02,179.1]
[1759132937637,4.3029,209.08,209.03,7.83]
[1759132938336,4.3029,209.08,209.02,62.0]
[1759132938337,4.3029,209.08,209.02,178.98]
[1759132938631,4.3029,209.08,209.02,122.2616817]
[1759132938835,4.3029,209.08,209.03,7.83]
[1759132939638,4.3029,209.08,209.02,122.2616817]
[1759132939840,4.3029,209.08,209.03,7.83]
[1759132940230,4.3029,209.08,209.02,122.2616817]
[1759132940633,4.3029,209.08,209.03,7.83]
[1759132940840,4.3025,209.1,209.03,7.83]
[1759132941340,4.3025,209.1,209.03,117.1]
[1759132941536,4.3025,209.1,209.04,69.83]
[1759132941741,4.3025,209.1,209.04,7.83]
[1759132944243,3.61,209.12,209.04,7.83]
[1759132944539,3.61,209.12,209.04,124.87]
[1759132944741,3.61,209.12,209.05,62.0]
[1759132945444,4.3026,209.1,209.05,62.0]
[1759132945941,3.57,209.09,209.01,12.8116817]
[1759132946141,3.57,209.09,209.02,117.02]
[1759132946337,3.57,209.09,209.01,12.8116817]
[1759132946533,4.3032,209.07,209.03,7.53]
[1759132947343,4.3032,209.07,209.02,117.08]
[1759132947838,4.3034,209.06,209.03,7.53]
[1759132948040,4.3034,209.06,208.97,171.20123151]
[1759132948041,66.9409,209.06,208.99,12.8116817]
[1759132948340,68.9595091,209.04,208.96,5.2816817]
[1759132948540,3.57,209.01,208.94,375.34539707]
[1759132948740,66.9598,209.0,208.94,14.43371537]
[1759132948937,66.9663,208.98,208.91,12.8116817]
[1759132949141,3.57,208.97,208.91,7.53]
[1759132950545,7.8757,208.95,208.91,7.53]
[1759132950849,3.57,208.97,208.88,5.2816817]
[1759132951041,68.9784091,208.98,208.87,12.8116817]
[1759132951042,4.3061,208.93,208.87,12.8116817]
[1759132951239,3.57,208.95,208.87,118.1716817]
[1759132951547,3.57,208.95,208.87,130.0316817]
[1759132952245,3.57,208.95,208.87,124.75]
[1759132952547,7.8755,208.95,208.87,124.75]
[1759132953044,7.8755,208.95,208.87,7.53]
[1759132953244,4.3059,208.94,208.87,124.79]
[1759132954635,3.57,208.91,208.87,22.18875806]
[1759132954839,68.9899091,208.95,208.87,14.65875806]
[1759132955046,72.5599091,208.95,208.87,7.53]
[1759132956548,4.306,208.93,208.87,7.53]
[1759132956843,3.57,208.95,208.87,21.63600372]
[1759132957051,66.9663,208.98,208.88,7.53]
[1759132957052,72.5484091,208.98,208.88,7.53]
[1759132957249,3.57,208.97,208.88,7.53]
[1759132958052,3.57,209.02,208.9,7.53]
[1759132958651,4.3049,208.99,208.92,7.53]
[1759132959046,3.57,209.0,208.92,7.53]
[1759132960550,4.3052,208.97,208.92,7.53]
[1759132960847,4.3052,208.97,208.91,117.26]
[1759132961052,3.57,209.0,208.92,7.53]
[1759132961553,4.3049,208.99,208.92,7.53]
[1759132961751,3.57,209.0,208.92,7.53]
[1759132962352,3.57,209.0,208.92,8.81922075]
[1759132962552,4.3051,208.98,208.92,8.81922075]
[1759132966660,4.3051,208.98,208.95,7.53]
[1759132967357,4.3053,208.97,208.92,7.53]
[1759132967558,4.3053,208.97,208.91,158.50922075]
[1759132968349,4.3053,208.97,208.92,7.53]
[1759132968551,4.3055,208.96,208.91,158.50922075]
[1759132969251,4.3055,208.96,208.92,7.53]
[1759132969457,4.3055,208.96,208.91,158.50922075]
[1759132969860,4.3055,208.96,208.92,7.53]
[1759132970763,4.3057,208.95,208.92,7.53]
[1759132970961,3.57,208.95,208.89,1.28922075]
[1759132971161,3.57,208.95,208.91,117.08]
[1759132971459,3.57,208.95,208.91,124.61]
[1759132971665,1.28922075,208.98,208.91,117.08]
[1759132971864,4.85922075,208.98,208.91,124.61]
[1759132972159,4.3053,208.96,208.91,117.08]
[1759132972367,4.3053,208.96,208.92,7.53]
[1759132972556,4.3053,208.96,208.91,117.08]
[1759132972762,4.3053,208.96,208.92,7.53]
[1759132973364,4.3053,208.96,208.91,117.08]
[1759132974169,4.3053,208.96,208.92,7.73]
[1759132974360,4.3053,208.96,208.91,117.08]
[1759132974564,4.3053,208.96,208.92,7.73]
[1759132974760,3.6,209.03,208.93,1.28922075]
[1759132975067,1.28922075,209.02,208.94,7.73]
[1759132975560,4.3048,208.99,208.94,7.73]
[1759132976160,4.3048,208.99,208.93,1.28922075]
[1759132976566,4.305,208.98,208.94,7.73]
[1759132976967,4.305,208.98,208.93,1.28922075]
[1759132977659,4.305,208.98,208.94,7.73]
[1759132977861,4.305,208.98,208.93,63.28922075]
[1759132978160,4.305,208.98,208.94,7.73]
[1759132978365,4.305,208.98,208.93,63.28922075]
[1759132978667,4.305,208.98,208.94,7.73]
[1759132978968,4.305,208.98,208.93,63.28922075]
[1759132979166,4.305,208.98,208.94,7.73]
[1759132979364,3.6,209.03,208.94,7.73]
[1759132979568,3.6,209.03,208.96,7.73]
[1759132980263,4.3042,209.02,208.96,7.73]
[1759132980563,4.3042,209.02,208.97,1.28922075]
[1759132980963,4.3037,209.04,208.98,7.73]
[1759132981365,3.6,209.04,208.95,9.01922075]
[1759132981570,4.3045,209.01,208.97,7.73]
[1759132981770,3.6,209.04,208.98,7.73]
[1759132982672,4.3039,209.03,208.98,7.73]
[1759132982867,1.28922075,209.07,209.0,7.73]
[1759132983067,70.534,209.08,209.0,7.73]
[1759132984473,3.6,209.08,209.01,1.28922075]
[1759132984776,3.6,209.12,209.04,7.73]
[1759132985770,7.9028,209.09,209.03,9.01922075]
[1759132987874,7.9028,209.09,209.03,71.01922075]
[1759132988367,4.3028,209.09,209.03,71.01922075]
[1759132988571,4.3028,209.09,209.03,69.73]
[1759132988771,4.3028,209.09,209.03,71.01922075]
[1759132990069,4.3023,209.11,209.05,1.28922075]
[1759132990275,4.3023,209.11,209.08,7.73]
[1759132990678,3.6,209.16,209.08,7.73]
[1759132990879,4.3019,209.13,209.07,1.28922075]
[1759132991173,4.3019,209.13,209.08,7.73]
[1759132991376,4.3019,209.13,209.07,1.28922075]
[1759132992175,4.3019,209.13,209.08,1.28922075]
[1759132992372,4.3019,209.13,209.06,90.88]
[1759132992568,4.3019,209.13,209.08,1.28922075]
[1759132993068,4.3019,209.13,209.07,117.08]
[1759132993268,4.3019,209.13,209.08,63.28922075]
[1759132995274,4.3014,209.15,209.1,1.28922075]
[1759132996377,4.3014,209.15,209.11,7.85]
[1759132996581,4.3014,209.15,209.1,1.28922075]
[1759132996778,4.3014,209.15,209.11,7.85]
[1759132997378,4.3014,209.15,209.1,1.28922075]
[1759132997578,4.3014,209.15,209.11,7.85]
[1759132997885,11.5314,209.15,209.11,7.85]
[1759132998073,11.5314,209.15,209.1,1.28922075]
[1759132998274,11.5314,209.15,209.11,7.85]
[1759132998479,11.5314,209.15,209.1,1.28922075]
[1759132998883,4.301,209.18,209.12,1.28922075]
[1759132999181,7.23,209.2,209.14,7.85]
[1759132999376,7.23,209.2,209.14,9.13922075]
[1759132999772,11.5308,209.19,209.15,7.85]
[1759133000179,4.3008,209.19,209.15,7.85]
[1759133000478,4.3008,209.19,209.17,7.85]
[1759133000873,4.3008,209.19,209.16,9.13922075]
[1759133001282,4.3008,209.19,209.17,7.85]
[1759133001479,7.23,209.22,209.16,1.28922075]
[1759133001683,7.23,209.19,209.13,7.85]
[1759133001979,4.3014,209.16,209.13,7.85]
[1759133002184,4.3014,209.16,209.12,1.28922075]
[1759133002381,74.1161,209.23,209.13,7.85]
[1759133002685,4.3004,209.2,209.15,7.85]
[1759133002885,4.3004,209.2,209.14,1.28922075]
[1759133003279,4.3004,209.2,209.15,7.85]
[1759133003582,11.5304,209.2,209.15,7.85]
[1759133003778,11.5304,209.2,209.13,117.02]
[1759133004083,11.5304,209.2,209.15,1.28922075]
[1759133004284,11.5304,209.2,209.16,7.96]
[1759133004678,11.5304,209.2,209.15,1.28922075]
[1759133005079,11.5304,209.2,209.16,7.96]
[1759133005481,4.3004,209.2,209.16,7.96]
[1759133005682,4.3004,209.2,209.15,1.28922075]
[1759133005884,4.3,209.22,209.17,1.28922075]
[1759133006086,4.3,209.22,209.18,7.96]
[1759133006491,7.39,209.23,209.18,7.96]
[1759133006685,4.2996,209.24,209.2,7.96]
[1759133007381,4.2996,209.24,209.19,1.28922075]
[1759133007783,4.2992,209.26,209.2,7.96]
[1759133007990,4.2992,209.26,209.15,4.3012]
[1759133007991,11.6892,209.26,209.21,1.28922075]
[1759133008288,74.2457,209.33,209.25,1.28922075]
[1759133008683,4.2987,209.29,209.26,7.96]
[1759133009090,7.39,209.33,209.27,1.28922075]
[1759133009389,66.827,209.42,209.27,1.28922075]
[1759133009390,7.39,209.47,209.32,1.28922075]
[1759133009584,7.39,209.44,209.36,7.96]
[1759133010389,7.39,209.42,209.36,1.28922075]
[1759133010694,7.39,209.42,209.34,1.28922075]
[1759133010885,4.2964,209.4,209.33,179.36]
[1759133011086,4.2964,209.4,209.33,63.28922075]
[1759133012096,4.2964,209.4,209.33,77.36854835]
[1759133012592,7.39,209.39,209.33,15.36854835]
[1759133012993,11.6868,209.38,209.33,23.32854835]
[1759133013485,7.39,209.35,209.3,121.51567913]
[1759133013692,7.39,209.35,209.31,7.96]
[1759133013893,74.2205,209.41,209.32,7.96]
[1759133014087,4.2965,209.39,209.33,1.28922075]
[1759133014488,7.39,209.41,209.33,1.28922075]
[1759133014686,4.296,209.42,209.34,7.96]
[1759133014891,12.97522075,209.42,209.34,7.96]
[1759133015190,11.686,209.42,209.34,7.96]
[1759133015391,11.686,209.42,209.35,1.28922075]
[1759133017190,4.2963,209.4,209.34,125.58]
[1759133017394,4.2963,209.4,209.34,125.56]
[1759133017792,7.39,209.46,209.38,7.96]
[1759133018094,7.39,209.46,209.39,1.28922075]
[1759133019195,66.7934,209.52,209.41,1.28922075]
[1759133019397,8.67922075,209.51,209.41,1.28922075]
[1759133019602,7.39,209.51,209.41,1.28922075]
[1759133019888,66.7934,209.52,209.42,46.2]
[1759133019889,7.39,209.49,209.42,46.2]
[1759133020285,8.67922075,209.49,209.42,46.2]
[1759133020490,7.39,209.48,209.42,46.2]
[1759133020790,7.39,209.46,209.39,1.28922075]
[1759133021095,7.39,209.46,209.4,82.64]
[1759133021990,1.28922075,209.49,209.4,90.6]
[1759133022185,8.67922075,209.49,209.4,90.6]
[1759133022586,7.39,209.49,209.4,90.6]
[1759133022797,8.67922075,209.49,209.4,90.6]
[1759133022993,8.67922075,209.49,209.4,152.6]
[1759133023498,8.67922075,209.49,209.4,91.88922075]
[1759133023689,4.295,209.47,209.4,9.24922075]
[1759133023888,7.39,209.46,209.4,58.54]
[1759133024086,7.39,209.46,209.4,99.32]
[1759133025396,74.2033,209.46,209.33,7.96]
[1759133025599,7.39,209.46,209.35,7.96]
[1759133026003,4.2957,209.43,209.35,7.96]
[1759133026703,4.2957,209.43,209.35,125.48]
[1759133026905,4.2961,209.42,209.35,125.48]
[1759133027104,4.2961,209.42,209.35,7.96]
[1759133027301,7.39,209.4,209.32,14.24556053]
[1759133027596,7.39,209.4,209.3,128.18645838]
[1759133028098,4.2971,209.36,209.3,128.18645838]
[1759133028896,7.39,209.33,209.25,69.96]
[1759133029104,7.39,209.33,209.26,117.64]
[1759133030003,7.39,209.33,209.26,14.51536136]
[1759133030300,66.8416,209.37,209.25,69.96]
[1759133030301,4.297,209.37,209.28,7.96]
[1759133030899,4.297,209.37,209.29,117.96]
[1759133031202,7.39,209.39,209.3,7.96]
[1759133031699,4.2971,209.36,209.28,117.94]
[1759133033202,7.39,209.37,209.27,7.96]
[1759133033203,4.2976,209.34,209.27,7.96]
[1759133033404,7.39,209.34,209.27,7.96]
[1759133034702,7.39,209.34,209.27,125.94]
[1759133035701,7.39,209.34,209.27,7.96]
[1759133036004,7.39,209.34,209.28,117.96]
[1759133036398,7.39,209.34,209.28,117.94]
[1759133036594,7.39,209.34,209.27,7.96]
[1759133036800,7.39,209.34,209.28,117.94]
[1759133037201,7.39,209.34,209.28,117.92]
[1759133037604,7.39,209.34,209.27,7.96]
[1759133037903,11.6877,209.34,209.28,117.9]
[1759133038299,4.2981,209.31,209.27,7.96]
[1759133038504,11.6681,209.31,209.27,7.96]
[1759133038700,66.8542,209.33,209.25,62.0]
[1759133038904,66.8542,209.33,209.11,81.2824]
[1759133038905,74.2307,209.31,209.18,2.18781393]
[1759133039200,4.2985,209.3,209.19,7.29]
[1759133039406,4.2985,209.3,209.2,7.29]
[1759133039605,4.2985,209.3,209.21,75.84]
[1759133039804,4.2985,209.3,209.22,7.29]
[1759133040105,4.2985,209.3,209.23,117.96]
[1759133040405,4.2973,209.36,209.25,7.29]
[1759133040601,7.37,209.38,209.25,2.18781393]
[1759133040805,7.37,209.38,209.26,7.29]
[1759133040996,66.8383,209.38,209.27,109.74]
[1759133041199,7.37,209.37,209.28,7.29]
[1759133041396,7.37,209.42,209.29,7.29]
[1759133041794,4.2969,209.38,209.3,62.0]
[1759133041997,7.37,209.42,209.31,7.29]
[1759133042401,7.37,209.42,209.32,84.48]
[1759133042598,7.37,209.42,209.33,7.29]
[1759133042797,2.18781393,209.46,209.33,7.29]
[1759133043404,4.2958,209.43,209.33,7.29]